Cogmind - Beta 13 X1 @@@ ROGUE MODE // 2023.07.05 @ 20:29:48 Player: leiavoia Result: Destroyed by E4-DZZ(R) with Subdweller Machine Gun Performance ------------- Evolutions (0) 0 Regions Visited (3) 600 Robots Destroyed (45) 225 Value Destroyed (1097) 1097 Prototype IDs (7) 140 Alien Tech Used (0) 0 Bonus (0) 0 TOTAL SCORE: 2062 Bonus ------- None Cogmind --------- Core Integrity 0/250 Matter 76/300 Energy 200/200 System Corruption 8% Temperature Cool (0) Movement Treading (160) Location -10/Subcaves Parts ------- > --- POWER (1) -------- Subdweller Power Source > --- PROPULSION (2) --- Light Treads (fused) Spiked Treads > --- UTILITY (2) ------ Large Storage Unit Medium Armor Plating > --- WEAPON (2) ------- Battle Cannon Battle Cannon > --- INVENTORY (15) --- Ion Engine Light Treads Large Storage Unit Medium Matter Pod (100) Structural Scanner Improved Terrain Scanner Light Armor Plating Medium Armor Plating Makeshift Armor Plating Particle Cannon Particle Cannon Particle Cannon Battle Cannon Grenade Launcher Makeshift Hammer Peak State ------------ > --- POWER ------------ Subdweller Power Source > --- PROPULSION ------- Light Treads Spiked Treads > --- UTILITY ---------- Large Storage Unit Medium Armor Plating > --- WEAPON ----------- Battle Cannon Makeshift Hammer > --- INVENTORY -------- Ion Engine Light Treads Large Storage Unit Medium Matter Pod Structural Scanner Improved Terrain Scanner Light Armor Plating Medium Armor Plating Makeshift Armor Plating Particle Cannon Particle Cannon Particle Cannon Battle Cannon Battle Cannon Grenade Launcher [Rating: 16] Favorites ----------- Power Subdweller Power Source Engine Subdweller Power Source Propulsion Light Treads Treads Light Treads Leg Aluminum Leg Utility Large Storage Unit Device Tractor Beam Storage Large Storage Unit Protection Medium Armor Plating Weapon Battle Cannon Energy Gun Small Laser Energy Cannon Particle Cannon Ballistic Gun Assault Rifle Ballistic Cannon Battle Cannon Launcher Grenade Launcher Impact Weapon Makeshift Hammer Build | -11 -10 -10 -10 ------- Run | Jun Mat Min Sub Slots Evolved . | . . . . Power . | . . . . Propulsion . | . . . . Utility . | . . . . Weapon . | . . . . Parts Attached 35 | 1 12 6 16 Power 6 | . 2 2 2 Engine 6 | . 2 2 2 Core . | . . . . Reactor . | . . . . Propulsion 4 | . 2 . 2 Treads 4 | . 2 . 2 Leg . | . . . . Wheel . | . . . . Hover . | . . . . Flight . | . . . . Utility 8 | 1 4 1 2 Device 2 | 1 1 . . Storage 1 | . 1 . . Processor . | . . . . Hackware . | . . . . Protection 5 | . 2 1 2 Artifact . | . . . . Weapon 17 | . 4 3 10 Energy Gun . | . . . . Energy Cannon 4 | . 1 2 1 Ballistic Gun 3 | . 2 . 1 Ballistic Cannon 8 | . 1 1 6 Launcher 1 | . . . 1 Special Weapon . | . . . . Impact Weapon 1 | . . . 1 Slashing Weapon . | . . . . Piercing Weapon . | . . . . Special Melee Weapon . | . . . . Unidentified Prototypes . | . . . . Parts Lost 4 | . . 2 2 Power 2 | . . 1 1 Propulsion . | . . . . Utility 1 | . . . 1 Weapon 1 | . . 1 . Highest Loss Streak 2 | . . 2 2 To Critical Strikes . | . . . . Average Slot Usage (%) 99 | . 99 100 100 Engine 14 | . 14 14 14 Treads 23 | . 7 28 28 Leg 4 | . 20 . . Storage 14 | . 14 14 14 Protection 13 | . 13 14 14 Energy Cannon 3 | . 1 8 . Ballistic Gun 7 | . 24 5 . Ballistic Cannon 17 | . 2 13 26 Naked Turns . | . . . . Heaviest Build 41 | 12 35 41 40 Greatest Support 40 | 20 40 40 40 Greatest Overweight (x) 1 | . 1 1 . Average Overweight (x) . | . . . . Largest Inventory Capacity 15 | 8 15 15 15 Average Capacity 14 | 8 13 15 15 Most Carried 15 | 7 15 15 15 Average Carried 14 | 6 12 14 14 Final Capacity 15 | 8 15 15 15 Final Carried 15 | 7 15 15 15 Class Distribution -------------------- 65% | Mutant 34% | Derelict-Mutant Dominant Class ---------------- Mutant | -10/Materials Mutant | -10/Mines Derelict-Mutant | -10/Subcaves Resources | -11 -10 -10 -10 ----------- Run | Jun Mat Min Sub Matter Collected 1832 | 270 479 302 781 Remotely 31 | 31 . . . Salvage Created 1091 | 94 382 232 383 Parts 78 | 7 38 14 19 Haulers Intercepted 1 | . 1 . . Recyclers Shooed 3 | . 2 1 . Parts Field Recycled . | . . . . Retrieved Matter . | . . . . Parts Self-Destructed 8 | . . . 8 Prevented . | . . . . Kills | -11 -10 -10 -10 ------- Run | Jun Mat Min Sub Combat Hostiles Destroyed 35 | . 12 8 15 Guns 13 | . 10 3 . Cannons 20 | . 2 5 13 AOE 2 | . . . 2 Classes Destroyed 9 | 2 5 1 1 Builder 3 | . 3 . . Tunneler 3 | 3 . . . Hauler 1 | . 1 . . Recycler 1 | 1 . . . Watcher 2 | . 2 . . Swarmer 12 | . 9 3 . Grunt 10 | . 3 3 4 Sentry 3 | . . 2 1 Subdweller 10 | . . . 10 Best Kill Streak 5 | 2 5 2 3 Combat Bots Only 3 | . 3 2 3 Max Kills in Single Turn 1 | 1 1 1 1 Gunslinging . | . . . . Exploded 1 | . . . 1 Melee . | . . . . Uniques/NPCs Destroyed . | . . . . Combat | -11 -10 -10 -10 -------- Run | Jun Mat Min Sub Damage Taken 1736 | . 469 519 748 Core 268 | . 102 57 109 Absorbed by Shields . | . . . . Core Remaining (%) 100 | 100 . . . Volleys Fired 183 | 20 55 31 77 Largest 2 | 2 2 2 2 Hottest 103 | 60 80 103 78 Shots Fired 356 | 36 114 62 144 Gun 163 | 36 105 19 3 Cannon 191 | . 9 43 139 Launcher 2 | . . . 2 Special . | . . . . Kinetic 320 | 20 109 51 140 Thermal 34 | 16 5 11 2 Explosive 2 | . . . 2 Electromagnetic . | . . . . Robot Hit Streak 25 | 8 9 25 19 Robot Miss Streak 11 | 4 11 4 2 Penetration Max . | . . . . Secondary Targets . | . . . . Shots Hit Robots 188 | 18 55 37 78 Core Hits 59 | 5 21 11 22 Critical Kills . | . . . . Critical Parts Destroyed 1 | . 1 . . Critical Strikes 6 | . 1 2 3 Destroy 1 | . 1 . . Blast 5 | . . 2 3 Melee Attacks 5 | . . . 5 Impact 5 | . . . 5 Slashing . | . . . . Piercing . | . . . . Sneak Attacks . | . . . . Combat Hostiles . | . . . . Follow-up Attacks . | . . . . Damage Inflicted 3276 | 247 748 687 1594 Guns 1094 | 247 624 177 46 Cannons 1929 | . 88 450 1391 Explosions 142 | . . . 142 Melee . | . . . . Ramming 111 | . 36 60 15 Kinetic 2726 | 117 674 498 1437 Thermal 297 | 130 38 129 . Explosive 142 | . . . 142 Electromagnetic . | . . . . Impact . | . . . . Slashing . | . . . . Piercing . | . . . . Highest Corruption 8 | . 8 8 8 Average Corruption 7 | . 6 8 8 Corruption Purged . | . . . . Corruption Blocked . | . . . . Effects 175 | . 30 59 86 Message Errors 44 | . 7 18 19 Matter Fused 31 | . 4 9 18 Heat Flow Errors 16 | . 4 3 9 Energy Discharges 29 | . 4 12 13 Parts Rejected 2 | . . . 2 Parts Fused 1 | . . 1 . Data Loss (minor) 27 | . 6 10 11 Data Loss (major) 10 | . . 4 6 Misfires 7 | . 4 1 2 Alerts 5 | . 1 . 4 Weapon Failures 3 | . . 1 2 Overload Shots . | . . . . Overflow Damage 19 | . . 5 14 Projectiles 19 | . . 5 14 Explosions . | . . . . Melee . | . . . . Knockbacks 20 | . . 3 17 Impact . | . . . . Kinetic 20 | . . 3 17 Secondary . | . . . . Self-Inflicted Damage . | . . . . Shots . | . . . . Rammed 21 | . 6 14 1 Targets Rammed 24 | 1 8 14 1 Kicked 3 | 1 2 . . Crushed . | . . . . Highest Temperature 377 | 20 377 226 240 Average Temperature 83 | 17 99 72 97 Received Heat Transfer 372 | . 48 165 159 Effects 2 | . 2 . . Shutdowns 1 | . 1 . . Damage (minor) 1 | . 1 . . Siege Activations . | . . . . Robots Corrupted . | . . . . Combat Hostiles . | . . . . Parts Fried . | . . . . Impact Corruptions . | . . . . Robots Melted . | . . . . Combat Hostiles . | . . . . Parts Melted . | . . . . Heat Transferred 596 | 300 74 222 . Parts Sabotaged . | . . . . Parts Stolen . | . . . . Parts Stripped . | . . . . Power Chain Reactions . | . . . . Missiles Intercepted . | . . . . Alert | -11 -10 -10 -10 ------- Run | Jun Mat Min Sub Peak Influence 264 | 20 264 101 . Initial 13 | . 13 11 . Average 58 | 10 111 20 . Maximum Alert Level 1 | . 1 . . Low Security (%) 93 | 100 84 100 . Level 1 6 | . 15 . . Level 2 . | . . . . Level 3 . | . . . . Level 4 . | . . . . Level 5 . | . . . . High Security . | . . . . Max Security . | . . . . Squads Dispatched 1 | . 1 . . Investigation 1 | . 1 . . Extermination . | . . . . Reinforcement . | . . . . Assault . | . . . . Garrison . | . . . . Intercept . | . . . . Searches Triggered . | . . . . Construction Impeded . | . . . . Haulers Reinforced . | . . . . Active Scanning Responses . | . . . . Cargo Convoy Interrupts . | . . . . Stealth | -11 -10 -10 -10 --------- Run | Jun Mat Min Sub Distress Signals 1 | . 1 . . Communications Jammed . | . . . . Distress Signals . | . . . . Times Spotted 50 | . 21 11 18 Peak Tracking Total 4 | . 4 3 3 Tactical Retreats 5 | . 2 2 1 Traps | -11 -10 -10 -10 ------- Run | Jun Mat Min Sub Traps Triggered 7 | . 5 . 2 Indirectly . | . . . . Trap Hack Attempts . | . . . . Triggered . | . . . . Disarmed . | . . . . Reprogrammed . | . . . . Reused . | . . . . Traps Extracted . | . . . . Installed . | . . . . Triggered . | . . . . Machines | -11 -10 -10 -10 ---------- Run | Jun Mat Min Sub Machines Disabled . | . . . . Max in Single Turn . | . . . . Machines Repaired . | . . . . Machines Sabotaged . | . . . . Overloaded Fab Kills . | . . . . Hacking | -11 -10 -10 -10 --------- Run | Jun Mat Min Sub Machines Accessed 11 | . 10 . 1 Terminals 8 | . 8 . . Fabricators . | . . . . Repair Stations . | . . . . Recycling Units 2 | . 2 . . Scanalyzers . | . . . . Garrison Access . | . . . . Total Hacks 34 | . 30 . 4 Successful 18 | . 14 . 4 Failed 15 | . 15 . . Catastrophic . | . . . . Database Lockouts 1 | . 1 . . Manual 6 | . 6 . . Terminals 25 | . 25 . . Fabricators . | . . . . Repair Stations . | . . . . Recycling Units 5 | . 5 . . Scanalyzers . | . . . . Garrison Access . | . . . . Terminal Hacks 16 | . 12 . 4 Record 4 | . . . 4 Robot Analysis 2 | . 2 . . Prototype ID Bank 5 | . 5 . . Recall Investigation 1 | . 1 . . Hauler Manifests 1 | . 1 . . Registered Components 1 | . 1 . . Zone Layout 2 | . 2 . . Fabricator Hacks . | . . . . Repair Station Hacks . | . . . . Recycling Unit Hacks 2 | . 2 . . Retrieve Components 2 | . 2 . . Scanalyzer . | . . . . Garrison Access Hacks . | . . . . Unauthorized Hacks . | . . . . Terminals . | . . . . Fabricators . | . . . . Repair Stations . | . . . . Recycling Units . | . . . . Scanalyzers . | . . . . Garrison Access . | . . . . Data Cores Recovered . | . . . . Used . | . . . . Hacking Detections 7 | . 7 . . Full Trace Events 2 | . 2 . . Feedback Events . | . . . . Feedback Blocked . | . . . . Robot Schematics Acquired . | . . . . Robots Built . | . . . . Authchips . | . . . . Time . | . . . . Total Robot Build Rating . | . . . . Part Schematics Acquired . | . . . . Parts Built . | . . . . Authchips . | . . . . Time . | . . . . Total Part Build Rating . | . . . . Parts Repaired . | . . . . Time . | . . . . Parts Recycled . | . . . . Recycled Matter . | . . . . Retrieved Matter . | . . . . Retrieved Components 11 | . 11 . . Parts Scanalyzed . | . . . . Part Schematics Acquired . | . . . . Parts Damaged . | . . . . Bothacking | -11 -10 -10 -10 ------------ Run | Jun Mat Min Sub Used RIF Installer . | . . . . Robots Hacked . | . . . . Non-combat . | . . . . Combat . | . . . . Robot Hacks Applied . | . . . . Relay Couplers Released . | . . . . Fabnet Peak Effective % . | . . . . Robots Rewired . | . . . . Allies Hacked . | . . . . Hacks Repelled . | . . . . Allies | -11 -10 -10 -10 -------- Run | Jun Mat Min Sub Total Allies . | . . . . Largest Group . | . . . . Highest-Rated Group . | . . . . Highest-Rated Ally . | . . . . Total Orders . | . . . . Ally Attacks . | . . . . Total Damage . | . . . . Kills . | . . . . Allies Corrupted . | . . . . Allies Melted . | . . . . Intel | -11 -10 -10 -10 ------- Run | Jun Mat Min Sub Robot Analysis Total 2 | . 2 . . Derelict Logs Recovered 3 | . . 2 1 Drone Launches . | . . . . Drone Recoveries . | . . . . Exploration | -11 -10 -10 -10 ------------- Run | Jun Mat Min Sub Turns Passed 5928 | 105 1344 1731 2748 Spaces Moved 2887 | 38 669 786 1394 Core . | . . . . Treads 2395 | . 215 786 1394 Legs 492 | 38 454 . . Wheels . | . . . . Hover . | . . . . Flight . | . . . . Fastest Speed 120 | 120 120 160 160 Average Speed 160 | 120 165 160 160 Slowest Speed 240 | 120 190 240 160 Overloaded Moves . | . . . . Propulsion Burnouts . | . . . . Robots Hopped . | . . . . Cave-ins Triggered . | . . . . Exploration Rate (%) 69 | 4 96 100 76 Regions Visited 3 Branch Regions 2 Pre-discovered Areas 1 | . . 1 . Known Exits Taken . | . . . . Unknown Exits Taken 3 | 1 1 1 . Scrap Searched 13 | . . 1 12 Spaces Dug 1 | . . . 1 Terrain Destroyed 19 | . . 3 16 Melee . | . . . . Projectile 8 | . . 3 5 AOE 11 | . . . 11 Terrain Rammed . | . . . . Walls Destroyed . | . . . . Machines Disabled . | . . . . Actions | -11 -10 -10 -10 --------- Run | Jun Mat Min Sub Total 3811 | 61 799 1191 1760 Wait 623 | . 28 343 252 Move 2884 | 37 668 785 1394 Hop . | . . . . Pick Up 26 | 1 14 5 6 Fast Attach 10 | 1 3 2 4 Attach 7 | . 2 3 2 Detach 3 | . 2 1 . Swap 18 | . 7 1 10 Drop 28 | 1 12 6 9 Fire 183 | 20 55 31 77 Melee 5 | . . . 5 Ram . | . . . . Kick 3 | 1 2 . . Crush 21 | . 6 14 1 Escape Stasis . | . . . . Rewire . | . . . . Trap . | . . . . Miscellaneous . | . . . . Route ------- -11/Junkyard -10/Materials (discovered 4 exits: [*Mat x3] / [*Min]) -10/Mines (discovered 3 exits: [*Mat x2] / *Sub) -10/Subcaves (discovered 2 exits: [*Mat] / [*Mat]) History --------- Turn | Location | Event 40 | -11/Junkyard | Discovered new exit (range 3) 106 | -11/Junkyard | Entered Materials 300 | -10/Materials | Build established: Mutant 339 | -10/Materials | Discovered new exit (range 11) 354 | -10/Materials | Central database locked down 553 | -10/Materials | Discovered new exit (range 11) 1016 | -10/Materials | Discovered new exit (range 11) 1274 | -10/Materials | Discovered new exit (range 11) 1450 | -10/Materials | Entered Mines 1658 | -10/Mines | Discovered new exit (range 4) 1912 | -10/Mines | Learned Materials terminal intel 1912 | -10/Mines | Discovered new exit (range 8) 2096 | -10/Mines | Core integrity fell below 50% 2258 | -10/Mines | Learned Materials stockpile data 2513 | -10/Mines | Learned location of Storage (-9) 2542 | -10/Mines | Discovered new exit (range 6) 3181 | -10/Mines | Entered Subcaves 3834 | -10/Subcaves | A swath of the cavern ceiling suddenly collapsed 4097 | -10/Subcaves | Core integrity fell below 20% 4297 | -10/Subcaves | Learned location of 1 exit from Materials 4315 | -10/Subcaves | Shifting Twisted Machinery released Sub. Laser 4346 | -10/Subcaves | Build established: Derelict-Mutant 4418 | -10/Subcaves | Discovered new exit (range 8) 4671 | -10/Subcaves | Visited Clippyterm 4676 | -10/Subcaves | Learned Research security intel 4697 | -10/Subcaves | Discovered new exit (range 13) 4877 | -10/Subcaves | A swath of the cavern ceiling suddenly collapsed 5459 | -10/Subcaves | Shifting Twisted Machinery released Flamer 5643 | -10/Subcaves | Shifting Twisted Machinery released Unknown Energy Gun 5929 | -10/Subcaves | Destroyed by E4-DZZ(R) with Subdweller Machine Gun Last Messages --------------- Unknown Energy Gun falls loose from the Twisted Machinery. 05693_ FD>BLZ5ZDY>XC3BXQ:WMR2 XEHQH7S& |2Y 05708_ System corrupted: Substantial component data lost. 05736_ SOPWV2SH4H%JE8EHY6:6RH37RYH 05754_ D0-EDC(R) Sub. Monowheel blasted off. 05754_ D0-EDC(R) knocked back. 05755_ Acquired 4 matter. 05757_ D0-EDC(R) knocked back. 05763_ D0-EDC(R) destroyed. 05771_ Acquired 15 matter. 05773_ System corrupted: Energy discharge (-78). 05773_ Acquired 6 matter. 05774_ Acquired 4 matter. 05792_ Acquired 2 matter. 05812_ System corrupted: Matter fused (-8). 05831_ System corrupted: IFF burst signal emitted. 05866_ System corrupted: Substantial component data lost. 05894_ 8%RGQGVKIRC56VBK7QBP|BO%ZYFR%9AWOQB>Z5 05925_ TXME%F5LBLLGX>LANBEFGX 05926_ E4-DZZ(R) knocked back. Map ----- +----------------------------------------------------+ | ??????????????????????????????????# | | ???????????????????????????????????# | | ???????????????????????????????????## | | ????????????????????????????????????# [ | | ????????????########????????????????# | | ??????????### #####?####???##### | | ??????????# ### # ##? ##### ## #### | | ??????????# ##?## #? # ## #####??# | | ??????????# ##???# ### # #?????? | | ??????????# #????# # # ## ## #?????? | | ??????????# #????# ### ### ## #?????? | | ??????????# ##??## #?# ## ### ##?????? | | ??????????# #### #?# ##" #?????? | | ??????????## #?# " ####???? | | ???????????#### ##### "" &"""##??# | | ??????????????## " ####=""""#### | | ???????????????##"" ##??# """" ## | | ???????????????#"" " # ###### """### | | ???????????????#" " #### # ### """"##?## | | ???????????????# """#??###### " ##???# | | ??????????????### ""#?????## "" "##?#### | | ??????????????# " ##?????# """ ####" | | ??????????????# ""#?????#" ##""" ## " | | ??????????????#R% ##"#???#" #?##""" "" | | ??????????????# ###""" ####???##" |"" | | ??????????????# @;#?#"# ?? ## ## " | | ??????????????## #######??# | | ???????????????##;###"# ### & | | ????????????????# ##"# "### # " ### | | ????????????????#;###"##""# " "####?# | | ????????????????####""# "?# "????## # | | ????????????????##"#""##### " & ?????# | | ????????????????###""### ## "" ?????# | | ?????????????????##"#""# """" "##????### | | ??????????????????###"###"#"" ?????## | | ??????????????????##"##"# # ????## " | | ???????????????#### "# """" ????##^ | | ??????????????## # #"""" #???### ^^ | | ??????????????# ########" ##### ^ | | ??????????????# #######""" ## ^ | | ??????????????#" ## ## ## ### | | ??????????????#" ## ###### | | ??????????????##"""" ## #### ##^ | | ???????????????# " ####?#"" | | ???????????????## " "##?# " ## | | ????????????????##"" """## ##### #? | | ?????????????????###" " #??### #? | | ??????????????????## ##?## # #? | | ??????????????????# ##?## % %#? | | ??????????????????## ##??# ! ##? | +----------------------------------------------------+ Best States ------------- Heat Dissipation 25 Energy Generation 15 Energy Capacity 265 Matter Stores 300 Matter Capacity 300 Sight Range 16 Terrain Scan Density 10 Armor Coverage 225 Evasion (%) 55 Recoil Reduction 2 Item Schematics ----------------- None Robot Schematics ------------------ None Fabricated ------------ Nothing Alien Tech Used ----------------- None Achievements -------------- None Challenges ------------ None Game ------ Seed HeatVortexSuite Manual? 0 Play Time 00:32:16 Cumulative 998.7 hours Start 2023.07.05 @ 19:58:20 End 2023.07.05 @ 20:29:48 Sessions 1 Manual Loads 0 Difficulty Rogue Special Mode None Game No. 214 Rogue 182 Adventurer 31 Explorer 1 Win Type - Total 46 Types 32/0/6/7/0/0/1/0/0 Lore% 84 Gallery% 89 Achievement% 79 Wizard Run 0 Options --------- ASCII 0 Keyboard 0 Movement Arrows Keybinds 0 Fullscreen 1 Font 20/Terminus Map View 66x50 Tactical HUD 1 Map Filters NONE Filters NONE Steam 1 RUN: 310025d7-4009-4478-9368-89ecc00eaff9